bitfinex/quotes_ETHUSD_20260120
["timestamp","ask_amount","ask_price","bid_price","bid_amount"]
[1768930822835,14.29030775,2994.2,2993.1,0.55]
[1768930823857,14.29030775,2994.2,2993.1,0.002]
[1768930824761,0.546,2994.2,2993.1,12.62087463]
[1768930824945,12.34992282,2994.2,2993.1,0.002]
[1768930825144,12.34992282,2994.2,2993.1,0.55]
[1768930825342,7.05392649,2993.2,2992.4,0.002]
[1768930825544,18.85784931,2993.2,2992.0,0.002]
[1768930825749,7.05392649,2992.7,2991.7,12.61887463]
[1768930826061,11.80392282,2993.1,2991.8,13.16687463]
[1768930826264,11.80392282,2993.1,2991.8,0.548]
[1768930826466,7.05392649,2992.5,2991.4,0.548]
[1768930826653,18.85784931,2992.5,2991.4,0.548]
[1768930826834,7.05392649,2992.5,2991.4,13.16687463]
[1768930827036,0.546,2992.7,2991.4,13.16687463]
[1768930827364,0.546,2992.8,2991.4,13.16687463]
[1768930828654,12.34992282,2992.8,2991.4,13.16687463]
[1768930828849,14.29030775,2992.8,2991.4,13.16687463]
[1768930830057,14.29030775,2992.8,2991.6,0.002]
[1768930830446,0.546,2992.7,2991.6,12.62087463]
[1768930830643,11.80392282,2993.1,2991.6,12.62087463]
[1768930830964,12.34992282,2993.3,2991.6,12.62087463]
[1768930831349,12.34992282,2993.3,2991.7,23.122713]
[1768930831549,7.05392649,2993.5,2991.8,12.61887463]
[1768930831779,0.546,2993.3,2992.0,3.34214711]
[1768930832069,0.546,2993.3,2991.9,0.548]
[1768930832070,12.34992282,2993.6,2992.1,12.61887463]
[1768930832435,11.80392282,2993.6,2992.1,12.61887463]
[1768930832769,12.34992282,2993.6,2992.1,12.61887463]
[1768930832964,11.80392282,2993.4,2992.1,12.61887463]
[1768930833163,14.21930738,2993.4,2992.2,0.548]
[1768930834671,11.80392282,2993.4,2992.2,13.16687463]
[1768930835056,11.80392282,2993.7,2992.3,12.61887463]
[1768930835241,7.05392649,2994.0,2992.3,12.61887463]
[1768930835465,11.80392282,2994.1,2992.5,12.61887463]
[1768930836078,11.80392282,2993.9,2992.6,12.61887463]
[1768930836253,7.05392649,2993.5,2992.4,0.548]
[1768930836456,11.80392282,2993.7,2992.4,0.548]
[1768930836818,0.546,2993.6,2992.4,0.548]
[1768930836955,12.34992282,2993.6,2992.4,0.548]
[1768930839351,12.34992282,2993.6,2992.4,13.16687463]
[1768930839549,11.80392282,2994.4,2992.5,12.61887463]
[1768930839749,11.80392282,2994.4,2992.4,3.88978974]
[1768930839750,12.34992282,2994.4,2992.7,12.61887463]
[1768930839950,12.34992282,2994.4,2992.9,12.61887463]
[1768930840172,11.63809395,2994.8,2993.1,12.61887463]
[1768930840549,0.001,2997.0,2993.3,12.61887463]
[1768930840550,7.05392649,2995.5,2993.3,12.61887463]
[1768930840862,11.80392282,2995.6,2993.3,12.61887463]
[1768930840863,11.80392282,2995.6,2993.9,12.61887463]
[1768930841065,0.546,2995.8,2994.1,12.61887463]
[1768930841380,0.546,2995.8,2994.2,12.61887463]
[1768930841579,11.80392282,2995.9,2994.2,12.61887463]
[1768930841889,0.546,2996.2,2994.7,12.61887463]
[1768930842185,0.546,2996.4,2994.9,12.61887463]
[1768930843760,11.80392282,2996.7,2994.9,12.61887463]
[1768930843966,7.05492649,2997.0,2995.1,12.07217696]
[1768930843967,0.546,2996.8,2995.1,12.07217696]
[1768930845569,0.546,2996.8,2995.0,6.67779632]
[1768930845570,0.546,2996.9,2995.3,12.80635415]
[1768930845801,0.546,2996.9,2995.2,14.5]
[1768930845802,12.31978558,2996.9,2995.2,14.5]
[1768930845959,11.77378558,2996.4,2995.4,0.548]
[1768930846682,7.05492649,2997.0,2995.4,13.35435415]
[1768930846890,0.546,2996.9,2995.5,12.80635415]
[1768930847426,0.546,2996.9,2995.4,3.8864172]
[1768930847427,12.31978558,2996.9,2995.4,0.548]
[1768930847559,12.31978558,2996.9,2994.5,0.548]
[1768930847560,11.77378558,2996.0,2994.5,0.548]
[1768930847759,0.546,2996.9,2994.5,13.35435415]
[1768930847760,11.77378558,2996.4,2994.5,13.35435415]
[1768930847959,0.546,2996.3,2994.8,12.80635415]
[1768930848158,0.546,2996.3,2994.9,3.33897261]
[1768930848396,0.546,2996.3,2995.0,0.548]
[1768930848781,0.546,2996.5,2995.0,13.35435415]
[1768930848958,12.31978558,2996.5,2995.0,13.35435415]
[1768930849480,0.546,2996.4,2995.0,13.35435415]
[1768930850071,0.546,2996.4,2995.0,0.548]
[1768930850072,12.31978558,2996.4,2995.0,0.548]
[1768930850278,18.82771207,2996.1,2994.6,27.30635415]
[1768930850480,0.546,2996.0,2994.7,0.548]
[1768930850680,11.77378558,2996.1,2994.7,13.35435415]
[1768930850888,1.23197856,2996.3,2994.8,3.33905507]
[1768930851089,0.546,2996.5,2995.1,12.80635415]
[1768930851290,0.546,2996.6,2995.3,12.80635415]
[1768930851690,0.546,2996.6,2994.1,12.80635415]
[1768930851691,18.82771207,2996.2,2994.1,12.80635415]
[1768930851886,0.546,2996.1,2994.8,3.33903508]
[1768930852081,0.546,2996.1,2994.9,0.548]
[1768930852277,13.55176414,2996.1,2994.9,0.548]
[1768930852680,0.546,2996.1,2994.9,16.69332596]
[1768930853262,11.77378558,2996.5,2995.0,12.80635415]
[1768930853588,0.546,2996.4,2995.0,12.80635415]
[1768930854165,0.546,2996.4,2995.1,3.33878668]
[1768930854359,11.77378558,2996.5,2995.1,16.14514083]
[1768930854564,12.31978558,2996.9,2995.2,12.80635415]
[1768930855598,11.77378558,2996.9,2995.2,12.80635415]
[1768930855765,0.547,2997.0,2995.2,12.80635415]
[1768930855964,0.001,2997.0,2995.6,12.80635415]
[1768930856179,0.001,2997.0,2995.9,6.67579024]
[1768930856598,11.77378558,2997.6,2995.1,16.32635415]
[1768930856796,7.05392649,2997.0,2995.4,6.341354]
[1768930857094,7.05392649,2997.5,2995.9,12.80635415]
[1768930857294,11.77378558,2997.4,2996.0,13.35435415]
[1768930857682,11.77378558,2997.4,2996.0,0.548]
[1768930858298,11.77378558,2997.4,2996.0,3.88571701]
[1768930858477,0.546,2997.6,2996.1,12.80635415]
[1768930858796,3.33528944,2998.3,2996.4,20.393034]
[1768930858797,11.77378558,2998.2,2996.4,20.393034]
[1768930858997,12.31978558,2998.1,2996.5,13.35435415]
[1768930859172,11.77378558,2997.7,2996.5,0.548]
[1768930859495,14.20255679,2997.7,2996.5,0.548]
[1768930859996,11.77378558,2997.6,2996.1,12.80635415]
[1768930860294,0.546,2997.5,2996.2,16.14391506]
[1768930860500,11.77378558,2997.2,2995.9,0.548]
[1768930860697,11.77378558,2997.0,2995.6,12.80635415]
[1768930860896,0.546,2996.9,2996.1,3.3376723]
[1768930861095,18.66171207,2997.8,2996.2,12.80635415]
[1768930861395,0.546,2997.7,2996.2,12.80635415]
[1768930861700,12.31978558,2997.7,2996.2,12.80635415]
[1768930861909,12.31978558,2997.6,2996.2,12.80635415]
[1768930862397,12.31978558,2997.6,2996.0,0.548]
[1768930862398,11.77378558,2997.4,2996.0,0.548]
[1768930862782,11.77378558,2997.4,2996.2,3.33755263]
[1768930862968,0.546,2997.3,2996.2,3.33755263]
[1768930863175,11.77378558,2997.4,2996.2,3.33755263]
[1768930863370,11.77378558,2997.8,2996.3,15.38360115]
[1768930863575,0.546,2997.7,2996.3,12.80635415]
[1768930863769,0.546,2997.7,2996.2,10.01267445]
[1768930863770,11.60680825,2997.8,2996.5,12.80635415]
[1768930863971,0.546,2997.9,2996.5,12.80635415]
[1768930864407,11.77378558,2998.4,2996.6,19.48058493]
[1768930864573,11.77378558,2998.1,2996.6,19.48058493]
[1768930864898,2.42877121,2998.3,2996.5,3.33719162]
[1768930864899,11.77378558,2997.9,2996.5,3.33719162]
[1768930865072,11.77378558,2997.9,2996.5,19.48077253]
[1768930865274,0.546,2997.8,2996.5,19.48077253]
[1768930865874,0.546,2997.8,2996.6,12.80635415]
[1768930866107,0.546,2997.9,2996.6,12.80635415]
[1768930866295,0.001,2997.4,2996.6,12.80635415]
[1768930866484,0.001,2997.4,2996.7,3.33700403]
[1768930866686,0.546,2997.9,2996.8,0.547]
[1768930867403,12.31978558,2998.0,2996.8,0.547]
[1768930868571,11.77378558,2998.0,2996.8,0.547]
[1768930868777,11.77378558,2998.4,2996.9,12.80635415]
[1768930869078,0.546,2998.3,2997.0,12.80635415]
[1768930869304,12.31978558,2998.4,2997.0,12.80635415]
[1768930869489,7.05392649,2998.5,2997.0,12.80635415]
[1768930869704,11.77378558,2998.8,2997.2,12.80635415]
[1768930870008,11.77378558,2999.0,2997.4,12.80635415]
[1768930870616,11.77378558,2998.9,2997.3,0.547]
[1768930870978,11.77378558,2998.4,2997.3,0.547]
[1768930871178,11.77378558,2998.4,2997.3,3.8833286]
[1768930871506,7.59992649,2998.5,2997.4,3.3362029]
[1768930871703,0.546,2998.5,2997.3,13.35335415]
[1768930871926,12.31978558,2998.5,2997.3,0.547]
[1768930872282,12.31978558,2998.5,2997.0,0.547]
[1768930872683,6.66915604,2998.9,2997.0,0.547]
[1768930872684,11.77378558,2998.3,2997.0,0.547]
[1768930872874,0.546,2998.2,2996.9,12.80635415]
[1768930873084,7.59992649,2998.2,2996.9,12.80635415]
[1768930873294,18.82771207,2998.2,2996.9,12.80635415]
[1768930873603,0.546,2998.1,2996.9,12.80635415]
[1768930873911,11.77378558,2998.0,2996.9,3.33677348]
[1768930874111,7.05392649,2998.2,2997.0,12.80635415]
[1768930874435,0.546,2998.1,2997.0,12.80635415]
[1768930874798,12.31978558,2998.1,2996.7,16.14335665]
[1768930875002,12.31978558,2998.1,2996.9,3.33669143]
[1768930875413,0.546,2998.0,2996.9,3.33669143]
[1768930875731,0.546,2998.0,2997.0,3.33666827]
[1768930875904,0.546,2998.0,2996.8,12.05458314]
[1768930876109,0.546,2998.0,2996.9,3.33672186]
[1768930876322,0.546,2998.0,2997.0,12.05458314]
[1768930876801,0.546,2998.0,2996.8,3.33685512]
[1768930877128,12.29330162,2998.0,2996.6,15.93867111]
[1768930877632,12.29330162,2998.0,2996.6,12.60158314]
[1768930877830,6.49741788,2997.8,2996.6,12.60158314]
[1768930878128,6.49741788,2997.8,2996.6,15.93867124]
[1768930878338,11.74730162,2997.7,2996.7,0.002]
[1768930878498,11.74730162,2997.7,2996.6,0.547]
[1768930879415,12.29330162,2997.6,2996.6,0.547]
[1768930879999,0.001,2997.8,2996.7,12.05458314]
[1768930880507,0.546,2998.1,2996.7,12.05458314]
[1768930880719,11.74730162,2998.6,2997.1,12.05458314]
[1768930880921,11.74730162,2998.6,2997.0,6.67334]
[1768930880922,11.74730162,2998.6,2997.3,12.05458314]
[1768930881118,0.546,2998.5,2997.3,12.05458314]
[1768930881547,0.546,2998.7,2997.3,12.05458314]
[1768930881748,0.546,2998.6,2997.3,12.05458314]
[1768930882248,0.546,2998.8,2997.3,12.05458314]
[1768930882451,11.74730162,2998.9,2997.3,12.05458314]
[1768930882649,6.49741788,2999.0,2997.6,6.67200426]
[1768930882851,6.49741788,2999.0,2997.7,12.60158314]
[1768930883037,7.04341788,2999.0,2997.9,12.05458314]
[1768930883353,11.74730162,2998.9,2997.7,0.547]
[1768930883556,18.2447195,2998.6,2997.2,12.05458314]
[1768930883762,18.2447195,2998.6,2997.3,12.60158314]
[1768930884131,0.546,2998.5,2997.3,12.60158314]
[1768930884471,12.29330162,2998.5,2997.3,12.60158314]
[1768930884838,12.29330162,2998.5,2997.3,15.93789934]
[1768930885045,0.546,2998.5,2997.4,12.05458314]
[1768930885868,6.49741788,2998.6,2997.4,12.05458314]
[1768930886028,0.546,2998.6,2997.4,12.05458314]
[1768930886223,11.74730162,2998.7,2997.4,12.05458314]
[1768930886457,12.29330162,2998.7,2997.4,12.05458314]
[1768930887030,12.29330162,2998.7,2997.3,7.21965223]
[1768930887031,6.49741788,2998.6,2997.3,0.547]
[1768930887257,0.70434179,2998.5,2997.3,0.547]
[1768930887555,0.546,2998.7,2997.3,0.547]
[1768930887556,0.546,2998.7,2997.5,12.05458314]
[1768930888150,6.49741788,2998.6,2997.3,12.60158314]
[1768930888358,11.74730162,2998.5,2997.3,0.547]
[1768930888554,11.74730162,2998.1,2996.9,12.05458314]
[1768930888758,12.29330162,2998.1,2996.9,0.547]
[1768930889163,18.2447195,2997.8,2996.9,0.547]
[1768930889668,11.74730162,2997.7,2996.5,0.002]
[1768930889960,12.29330162,2997.6,2996.5,0.002]
[1768930890730,12.29330162,2997.6,2997.3,0.002]
[1768930890959,12.29330162,2997.6,2996.5,0.002]
[1768930891362,12.29330162,2997.6,2997.0,0.002]
[1768930891663,12.29330162,2997.6,2996.5,0.002]
[1768930891858,1.41177736,2997.5,2996.5,0.002]
[1768930892946,0.546,2997.4,2996.5,12.05658314]
[1768930893354,1.82447195,2997.7,2996.5,12.05658314]
[1768930893554,0.546,2997.6,2996.7,12.05458314]
[1768930893759,12.29330162,2997.7,2996.5,0.002]
[1768930894753,12.29330162,2997.7,2995.8,3.33792482]
[1768930894754,11.74730162,2997.2,2995.8,12.05458314]
[1768930895055,6.49741788,2997.3,2994.3,3.33966299]
[1768930895056,11.74730162,2996.8,2995.4,12.05458314]
[1768930895780,11.74730162,2996.8,2995.3,0.002]
[1768930896351,11.74730162,2996.5,2995.3,0.002]
[1768930896566,0.546,2996.4,2995.3,0.002]
[1768930896749,12.29330162,2996.4,2995.3,0.002]
[1768930897043,11.74730162,2996.0,2994.5,12.05458314]
[1768930897240,0.546,2996.0,2994.7,12.05458314]
[1768930897435,0.546,2996.1,2994.7,12.05458314]
[1768930898550,0.546,2996.2,2994.7,12.05458314]
[1768930898747,12.29330162,2996.2,2994.7,12.05458314]
[1768930899067,11.74730162,2996.0,2994.7,12.05458314]
[1768930899269,11.74730162,2996.0,2994.6,3.3393391]
[1768930899492,11.74730162,2996.0,2994.7,3.33919661]
[1768930900141,11.74730162,2996.0,2994.6,12.05458314]
[1768930900375,11.74730162,2996.0,2994.6,15.39387821]
[1768930900545,13.74930659,2996.0,2994.6,12.05458314]
[1768930900745,0.546,2995.9,2994.6,15.39388779]
[1768930900944,0.546,2995.9,2994.6,12.05458314]
[1768930901172,12.29330162,2995.9,2994.6,12.05458314]
[1768930901469,12.29330162,2995.9,2994.5,0.547]
[1768930901676,12.97663178,2995.8,2994.5,0.547]
[1768930901860,0.546,2995.7,2994.5,0.547]
[1768930902675,11.74730162,2995.6,2994.0,15.39456455]
[1768930902872,7.04341788,2995.7,2994.3,15.39423066]
[1768930902873,0.546,2995.7,2994.3,15.39423066]
[1768930903049,12.29330162,2995.7,2994.3,15.39423066]
[1768930903374,13.0995648,2995.6,2994.9,0.002]
[1768930903673,0.546,2995.5,2994.9,0.002]
[1768930904246,7.84968106,2995.6,2994.6,0.002]
[1768930904444,0.546,2995.5,2994.6,12.78352222]
[1768930904685,0.546,2995.5,2994.6,0.002]
[1768930907688,11.95657262,2996.1,2994.6,12.27948482]
[1768930907990,12.66957262,2996.0,2994.6,12.27948482]
[1768930908288,12.12357262,2995.9,2994.6,0.55]
[1768930908450,12.12357262,2995.7,2994.6,0.55]
[1768930908850,0.546,2995.6,2994.6,0.55]
[1768930909988,12.12357262,2995.7,2994.6,3.88930137]
[1768930910181,0.546,2995.6,2994.6,3.88930137]
[1768930910387,12.12357262,2996.3,2994.8,11.72948482]
[1768930910574,12.12357262,2996.3,2994.9,11.72948482]
[1768930910776,12.12457262,2996.6,2994.9,11.72948482]
[1768930911084,0.546,2996.5,2994.9,11.72948482]
[1768930911286,12.12457262,2996.6,2994.9,11.72948482]
[1768930911491,0.546,2996.5,2995.2,11.72948482]
[1768930911689,12.66957262,2996.5,2995.3,0.548]
[1768930911882,12.66957262,2996.5,2995.3,12.27748482]
[1768930912487,12.12357262,2996.3,2994.7,15.06864089]
[1768930912691,14.04027167,2996.3,2994.9,0.548]
[1768930912908,0.001,2996.6,2995.2,11.72948482]
[1768930913064,0.001,2996.6,2995.4,11.72948482]
[1768930913270,0.001,2996.6,2995.5,0.548]
[1768930913465,0.001,2996.6,2995.6,3.3382294]
[1768930913671,0.001,2996.6,2995.5,3.88631809]
[1768930914072,0.001,2996.6,2995.6,11.72948482]
[1768930914991,12.66857262,2997.0,2995.6,11.72948482]
[1768930915356,12.12357262,2996.7,2995.5,0.548]
[1768930915665,12.12357262,2996.7,2994.7,15.06868411]
[1768930915666,12.12357262,2996.3,2994.7,15.06868411]
[1768930915862,12.12357262,2996.1,2994.8,3.88711813]
[1768930916365,12.12357262,2996.1,2994.8,0.548]
[1768930916689,12.12357262,2996.1,2994.8,12.27748482]
[1768930917687,12.12357262,2996.1,2994.8,15.61659751]
[1768930917867,0.546,2996.1,2994.9,11.72948482]
[1768930918072,0.546,2996.2,2995.1,11.72948482]
[1768930918287,12.12357262,2996.4,2995.1,11.72948482]
[1768930918488,0.546,2996.3,2995.1,11.72948482]
[1768930918702,12.12357262,2996.4,2995.2,11.72948482]
[1768930919000,12.66957262,2996.3,2995.3,0.548]
[1768930919580,12.66957262,2996.3,2994.8,11.72948482]
[1768930919581,12.12357262,2996.0,2994.8,11.72948482]
[1768930919778,12.66957262,2995.9,2994.8,12.27748482]
[1768930920007,1.26695726,2996.2,2994.9,11.72948482]
[1768930920008,12.12357262,2996.2,2994.9,11.72948482]
[1768930920906,12.66957262,2996.2,2994.9,11.72948482]
[1768930921103,12.66957262,2996.2,2994.8,0.548]
[1768930921313,12.12357262,2996.0,2994.8,0.548]
[1768930925118,12.12357262,2995.9,2994.6,0.002]
[1768930925423,12.12357262,2995.7,2994.6,0.002]
[1768930926290,12.12357262,2995.6,2994.6,0.002]
[1768930927922,12.12357262,2995.2,2993.6,15.06987207]
[1768930928127,12.12357262,2994.8,2993.7,15.06983288]
[1768930928445,0.546,2994.9,2993.8,12.27748482]
[1768930928929,0.546,2995.0,2993.8,12.27748482]
[1768930929219,12.66957262,2995.0,2994.8,0.002]
[1768930929391,12.66957262,2995.0,2993.8,12.27748482]
[1768930929587,1.26695726,2994.9,2993.8,12.27748482]
[1768930929782,1.26695726,2994.9,2994.5,0.002]
[1768930929977,1.26695726,2994.9,2993.8,12.27748482]
[1768930930415,12.12357262,2994.7,2993.5,11.73148482]
[1768930930624,12.12357262,2994.7,2993.5,12.27948482]
[1768930930790,12.12357262,2994.7,2993.6,11.72948482]
[1768930930989,0.546,2994.6,2993.6,11.72948482]
[1768930931489,1.26695726,2994.9,2993.8,11.72948482]
[1768930931817,12.12357262,2995.0,2993.8,11.72948482]
[1768930931818,11.95657262,2995.3,2994.0,11.72948482]
[1768930932033,0.546,2995.4,2994.2,11.72948482]
[1768930932227,0.546,2995.4,2994.2,12.27748482]
[1768930933223,12.12357262,2995.6,2994.3,11.72948482]
[1768930933437,0.001,2996.6,2994.2,3.88778978]
[1768930933438,12.12357262,2995.9,2994.5,11.72948482]
[1768930933721,12.66957262,2995.8,2994.5,11.72948482]
[1768930934321,12.12357262,2995.8,2994.5,11.72948482]
[1768930934523,6.49741788,2996.1,2994.6,11.72948482]
[1768930934524,12.66957262,2996.1,2994.6,11.72948482]
[1768930934693,12.66957262,2996.1,2994.5,3.33941357]
[1768930934694,13.93652988,2996.1,2994.8,11.72948482]
[1768930935208,0.546,2996.0,2994.8,11.72948482]
[1768930935615,13.53199064,2996.0,2994.8,11.72948482]
[1768930936403,13.53199064,2996.0,2994.8,15.06858055]
[1768930936821,13.53199064,2996.0,2994.9,11.81926057]
[1768930936991,7.04742055,2996.5,2994.9,11.81926057]
[1768930936992,12.98599064,2996.3,2994.9,11.81926057]
[1768930937321,0.546,2996.2,2995.1,11.81926057]
[1768930937490,13.53199064,2996.2,2995.1,11.81926057]
[1768930938119,0.001,2996.4,2995.2,12.36726057]
[1768930938315,0.546,2996.3,2995.3,11.81926057]
[1768930938520,0.001,2996.4,2995.3,11.81926057]
[1768930938911,0.547,2996.4,2995.3,11.81926057]
[1768930939497,12.81999064,2996.9,2995.6,11.81926057]
[1768930939728,12.81999064,2996.9,2995.8,11.81926057]
[1768930939901,12.81999064,2996.9,2995.9,11.81926057]
[1768930940216,13.36599064,2996.9,2995.9,11.81926057]
[1768930940418,3.3361615,2998.4,2995.9,11.81926057]
[1768930940419,12.98599064,2997.9,2996.0,11.81926057]
[1768930940617,12.98599064,2998.2,2996.4,11.81926057]
[1768930940821,12.98599064,2998.2,2996.6,11.81926057]
[1768930940822,13.53199064,2998.2,2996.6,11.81926057]
[1768930941021,0.001,2998.4,2996.8,11.81926057]
[1768930941220,0.001,2998.4,2997.2,11.81926057]
[1768930941419,13.36599064,2998.9,2997.3,0.548]
[1768930941736,13.36599064,2998.9,2997.3,12.36726057]
[1768930942106,12.65399064,2998.9,2997.3,12.36726057]
[1768930942303,13.19999064,2998.9,2997.3,12.36726057]
[1768930942544,14.3059897,2998.8,2997.4,11.81926057]
[1768930942743,12.98599064,2998.8,2997.4,11.81926057]
[1768930943241,12.98599064,2998.6,2997.3,0.548]
[1768930943602,12.98599064,2998.6,2996.4,3.46529765]
[1768930943603,12.98599064,2998.6,2996.5,11.81926057]
[1768930943910,12.98599064,2998.5,2997.1,11.81926057]
[1768930944104,14.2845897,2998.5,2997.2,12.36726057]
[1768930944719,14.2845897,2998.5,2997.2,0.548]
[1768930945531,12.98599064,2998.4,2997.0,0.548]
[1768930945704,13.53199064,2998.3,2997.0,0.548]
[1768930945898,1.35319906,2998.2,2997.0,12.36726057]
[1768930946342,14.3391897,2998.2,2997.0,12.36726057]
[1768930947308,7.04742055,2998.6,2997.1,11.81926057]
[1768930947309,12.98599064,2998.6,2997.1,11.81926057]
[1768930947513,13.53199064,2999.0,2997.1,11.81926057]
[1768930948436,13.53199064,2998.9,2997.1,11.81926057]
[1768930948634,13.53199064,2998.9,2997.0,3.88459957]
[1768930948635,14.3391897,2998.8,2997.3,11.81926057]
[1768930948830,14.3391897,2998.8,2997.4,0.548]
[1768930949141,14.3391897,2998.8,2997.4,12.36726057]
[1768930949142,14.8851897,2998.8,2997.4,12.36726057]
[1768930949935,14.8851897,2998.8,2997.4,0.548]
[1768930950741,1.35319906,2998.8,2997.4,12.36726057]
[1768930951051,13.53199064,2998.8,2997.5,11.81926057]
[1768930951202,12.98599064,2998.8,2997.5,11.81926057]
[1768930952054,12.98599064,2998.8,2997.1,11.81926057]
[1768930952055,12.98599064,2998.5,2997.1,11.81926057]
[1768930952233,7.04742055,2998.6,2997.1,11.81926057]
[1768930952234,12.98599064,2998.3,2997.1,0.547]
[1768930952933,12.98599064,2998.0,2996.8,11.81926057]
[1768930953108,13.53199064,2998.0,2996.8,11.81926057]
[1768930953324,13.53199064,2998.0,2996.7,0.547]
[1768930953845,12.98599064,2997.7,2996.7,0.547]
[1768930954545,12.98599064,2997.7,2996.8,0.002]
[1768930956174,13.53199064,2997.7,2996.8,0.002]
[1768930956368,12.98599064,2997.7,2996.8,0.002]
[1768930956571,13.53199064,2997.7,2996.8,0.002]
[1768930957364,12.98599064,2997.7,2996.8,0.002]
[1768930958042,0.546,2997.8,2996.8,0.002]
[1768930958265,0.546,2997.8,2996.8,11.82126057]
[1768930958570,7.04742055,2998.1,2996.8,12.36826057]
[1768930958773,12.98599064,2998.8,2997.3,11.81926057]
[1768930958954,12.98599064,2999.1,2997.5,11.81926057]
[1768930962143,12.98599064,2999.0,2997.4,0.547]
[1768930962477,12.98599064,2998.8,2997.4,0.547]
[1768930964061,12.98599064,2998.8,2997.5,12.13294813]
[1768930966586,12.98599064,2998.8,2997.5,0.547]
[1768930966962,12.98599064,2998.8,2997.5,12.8606401]
[1768930968385,12.98599064,2998.8,2997.6,12.3136401]
[1768930969086,12.98599064,2998.8,2997.3,12.3136401]
[1768930969410,12.98599064,2998.8,2997.0,12.3156401]
[1768930969411,12.65394705,2998.7,2997.0,12.3156401]
[1768930969701,12.65394705,2998.5,2997.4,0.547]
[1768930970579,13.19994705,2998.5,2997.4,0.547]
[1768930975203,13.19994705,2998.5,2997.4,12.8606401]
[1768930978081,0.546,2998.5,2997.4,12.8606401]
[1768930978388,13.19994705,2998.5,2997.4,12.8606401]
[1768930978596,14.67982815,2998.5,2997.4,12.8606401]
[1768930979981,0.546,2998.5,2997.4,12.8606401]
[1768930980461,0.546,2998.5,2997.6,0.002]
[1768930980663,12.65394705,2998.4,2997.6,0.002]
[1768930981065,12.65394705,2998.4,2997.6,12.3156401]
[1768930981393,0.546,2998.5,2997.7,12.3136401]
[1768930981559,13.19994705,2998.5,2997.6,0.002]
[1768930981758,12.65394705,2998.3,2997.6,0.002]
[1768930983585,1.31999471,2998.4,2997.6,12.3156401]
[1768930983925,13.19994705,2998.5,2997.6,12.3156401]
[1768930984900,13.19994705,2998.5,2997.6,0.002]
[1768930985101,12.65394705,2998.4,2997.4,0.002]
[1768930986624,12.65394705,2998.3,2997.4,0.002]
[1768930986794,12.65394705,2998.1,2997.4,0.002]
[1768930986998,0.546,2998.0,2997.4,0.002]
[1768930987305,13.19994705,2998.0,2997.4,0.002]
[1768930987527,13.19994705,2998.0,2997.1,0.547]
[1768930987736,12.65394705,2997.8,2996.8,0.002]
[1768930988399,12.65394705,2997.7,2996.8,0.002]
[1768930988607,3.33579698,2997.8,2996.8,0.002]
[1768930988608,12.65394705,2997.5,2996.8,0.002]
[1768930989528,12.65394705,2997.5,2996.1,12.3136401]
[1768930989529,12.65394705,2997.4,2996.1,12.3136401]
[1768930989698,12.65394705,2997.4,2995.8,12.3136401]
[1768930990025,12.65394705,2997.2,2995.8,12.3136401]
[1768930990189,12.65394705,2997.0,2995.8,12.3136401]
[1768930990393,12.65394705,2997.0,2995.6,0.002]
[1768930990394,12.65394705,2996.8,2995.6,0.002]
[1768930990592,3.33678134,2996.9,2995.6,0.002]
[1768930990593,12.65394705,2996.6,2995.6,0.002]
[1768930990794,13.91934175,2996.6,2995.6,12.3156401]
[1768930991193,12.65394705,2997.2,2995.6,12.3156401]
[1768930991428,12.65394705,2996.9,2995.6,12.3156401]
[1768930991844,12.65394705,2997.3,2995.7,0.547]
[1768930991997,0.546,2997.2,2995.9,12.3136401]
[1768930992215,0.546,2997.2,2995.8,12.3136401]
[1768930992415,4.65568468,2997.9,2995.7,0.547]
[1768930992416,12.65394705,2997.6,2996.0,12.3136401]
[1768930992720,13.19994705,2997.5,2996.2,12.3136401]
[1768930993058,7.04742055,2997.8,2996.2,12.3136401]
[1768930993059,12.65394705,2997.3,2996.2,12.3136401]
[1768930993228,0.546,2997.2,2996.2,12.3136401]
[1768930994626,0.546,2997.2,2995.9,12.3136401]
[1768930994627,13.19994705,2997.2,2995.9,12.3136401]
[1768930994916,13.19994705,2997.2,2996.4,0.002]
[1768930995821,0.546,2997.5,2996.4,12.53586785]
[1768930996132,0.546,2997.5,2996.4,12.50249447]
[1768930996443,12.57352671,2997.5,2996.4,12.50249447]
[1768930997720,0.546,2997.4,2996.4,12.50249447]
[1768930999068,12.57352671,2997.4,2996.4,12.50249447]
[1768930999639,12.57352671,2997.4,2996.1,12.50249447]
[1768931000757,12.02752671,2997.3,2996.1,12.50249447]
[1768931000962,12.02752671,2997.1,2996.1,12.50249447]
[1768931001148,0.546,2997.0,2996.1,12.50249447]
[1768931003355,12.57352671,2997.0,2996.1,12.50249447]
[1768931005265,0.546,2997.0,2996.1,12.50249447]
[1768931007235,0.546,2997.0,2996.3,0.002]
[1768931007440,0.001,2996.9,2996.3,0.002]
[1768931008730,12.02852671,2996.9,2996.1,0.002]
[1768931009937,12.02852671,2996.9,2996.1,12.50249447]
[1768931013481,12.02852671,2996.9,2996.1,0.002]
[1768931013681,12.02852671,2996.9,2995.6,0.002]
[1768931013682,12.02752671,2996.2,2995.6,0.002]
[1768931013984,0.546,2996.1,2995.4,12.50249447]
[1768931014188,0.546,2996.6,2995.4,16.38891343]
[1768931014482,0.546,2996.8,2995.7,12.50049447]
[1768931015281,12.57352671,2996.8,2995.9,12.50049447]
[1768931016485,11.85952671,2997.4,2996.0,12.50049447]
[1768931016785,11.85952671,2997.4,2995.9,6.67578372]
[1768931016786,12.40552671,2997.4,2996.8,0.09880777]
[1768931017982,12.40552671,2997.4,2996.4,0.548]
[1768931018391,12.40552671,2997.4,2996.4,13.04849447]
[1768931018554,14.29616879,2997.4,2996.4,13.04849447]
[1768931022403,12.40552671,2997.4,2996.4,13.04849447]
[1768931025077,12.53178749,2997.4,2996.4,13.04849447]
[1768931026006,12.53178749,2997.4,2996.6,12.00642131]
[1768931026874,12.53178749,2997.4,2996.4,0.548]
[1768931026875,12.53178749,2997.4,2996.4,12.55442131]
[1768931032587,0.546,2997.4,2996.4,12.55442131]
[1768931032792,0.546,2997.4,2996.6,12.00642131]
[1768931033097,0.379,2997.4,2996.6,12.00642131]
[1768931033695,0.045,2997.4,2996.4,3.88532181]